[Event "Titled Tuesday Blitz April 25 Early 2023"]
[White "Shaik Sumer Arsh"]
[Black "Berezin, Viktor"]
[WhiteFideId "45020000"]
[BlackFideId "14107872"]
[WhiteElo "2350"]
[BlackElo "2310"]
[Result "1-0"]
[Round "07"]
[TimeControl "180+2"]
[Date "2023.04.25"]
[WhiteClock "0:00:17"]
[BlackClock "0:00:11"]

1. d4 {[%clk 0:02:37]}  Nf6 {[%clk 0:02:58]} 2. c4 {[%clk 0:02:37]}  g6 {[%clk 0:02:59]} 3. Nc3 {[%clk 0:02:36]}  Bg7 {[%clk 0:02:59]} 4. e4 {[%clk 0:02:37]}  O-O {[%clk 0:03:00]} 5. Nf3 {[%clk 0:02:37]}  d6 {[%clk 0:03:01]} 6. Be2 {[%clk 0:02:37]}  e5 {[%clk 0:03:01]} 7. Be3 {[%clk 0:01:34]}  Nc6 {[%clk 0:02:59]} 8. O-O {[%clk 0:01:25]}  Bg4 {[%clk 0:02:43]} 9. d5 {[%clk 0:01:24]}  Ne7 {[%clk 0:02:34]} 10. Ne1 {[%clk 0:01:24]}  Bxe2 {[%clk 0:02:33]} 11. Qxe2 {[%clk 0:01:25]}  Nd7 {[%clk 0:02:34]} 12. Nd3 {[%clk 0:01:24]}  f5 {[%clk 0:02:33]} 13. f3 {[%clk 0:01:24]}  f4 {[%clk 0:02:29]} 14. Bf2 {[%clk 0:01:23]}  g5 {[%clk 0:02:30]} 15. b4 {[%clk 0:01:21]}  a5 {[%clk 0:02:29]} 16. a3 {[%clk 0:01:20]}  h5 {[%clk 0:02:28]} 17. c5 {[%clk 0:01:21]}  Nf6 {[%clk 0:02:13]} 18. cxd6 {[%clk 0:01:08]}  cxd6 {[%clk 0:02:12]} 19. Nb5 {[%clk 0:01:07]}  Rf7 {[%clk 0:02:07]} 20. Nb2 {[%clk 0:01:06]}  Bf8 {[%clk 0:02:03]} 21. Nc4 {[%clk 0:01:06]}  Nc8 {[%clk 0:01:57]} 22. bxa5 {[%clk 0:01:01]}  g4 {[%clk 0:01:55]} 23. Bb6 {[%clk 0:01:00]}  Qd7 {[%clk 0:01:50]} 24. Nc7 {[%clk 0:00:57]}  Rb8 {[%clk 0:01:43]} 25. Ne6 {[%clk 0:00:54]}  Ne8 {[%clk 0:01:27]} 26. Kh1 {[%clk 0:00:49]}  Ng7 {[%clk 0:01:26]} 27. fxg4 {[%clk 0:00:33]}  Nxe6 {[%clk 0:01:22]} 28. dxe6 {[%clk 0:00:33]}  Qxe6 {[%clk 0:01:23]} 29. gxh5 {[%clk 0:00:34]}  Nxb6 {[%clk 0:01:20]} 30. axb6 {[%clk 0:00:33]}  Be7 {[%clk 0:01:17]} 31. Nd2 {[%clk 0:00:32]}  Kh7 {[%clk 0:01:16]} 32. Qc4 {[%clk 0:00:27]}  Qf6 {[%clk 0:01:15]} 33. Nf3 {[%clk 0:00:26]}  Rg8 {[%clk 0:01:15]} 34. a4 {[%clk 0:00:25]}  Rfg7 {[%clk 0:01:16]} 35. Ra2 {[%clk 0:00:25]}  Rg4 {[%clk 0:01:07]} 36. a5 {[%clk 0:00:24]}  Qg7 {[%clk 0:01:07]} 37. Rg1 {[%clk 0:00:23]}  Qf6 {[%clk 0:00:38]} 38. a6 {[%clk 0:00:21]}  Kh6 {[%clk 0:00:20]} 39. a7 {[%clk 0:00:20]}  Ra8 {[%clk 0:00:20]} 40. Qd5 {[%clk 0:00:19]}  Kxh5 {[%clk 0:00:17]} 41. Qxb7 {[%clk 0:00:18]}  Qf8 {[%clk 0:00:14]} 42. Qxa8 {[%clk 0:00:18]}  Qxa8 {[%clk 0:00:14]} 43. b7 {[%clk 0:00:19]}  Qxb7 {[%clk 0:00:12]} 44. a8=Q {[%clk 0:00:19]}  Qb3 {[%clk 0:00:12]} 45. Qh8+ {[%clk 0:00:19]}  Kg6 {[%clk 0:00:13]} 46. Ra8 {[%clk 0:00:17]}  Bf6 {[%clk 0:00:12]} 47. Qg8+ {[%clk 0:00:17]}  Kh5 {[%clk 0:00:11]} 48. Qxb3 {[%clk 0:00:17]} 1-0


[Site "https://www.chess.com"]

[Event "Titled Tuesday Blitz April 25 Early 2023"]
[White "Baches Garcia, Guillermo"]
[Black "Janaszak, Dawid"]
[WhiteFideId "2209764"]
[BlackFideId "1119206"]
[WhiteElo "2476"]
[BlackElo "2220"]
[Result "1/2-1/2"]
[Round "07"]
[TimeControl "180+2"]
[Date "2023.04.25"]
[WhiteClock "0:00:07"]
[BlackClock "0:00:12"]

1. e4 {[%clk 0:02:55]}  c5 {[%clk 0:02:59]} 2. Nf3 {[%clk 0:02:56]}  Nc6 {[%clk 0:03:00]} 3. d4 {[%clk 0:02:56]}  cxd4 {[%clk 0:03:00]} 4. Nxd4 {[%clk 0:02:56]}  e5 {[%clk 0:03:01]} 5. Nb5 {[%clk 0:02:56]}  d6 {[%clk 0:03:01]} 6. N1c3 {[%clk 0:02:55]}  a6 {[%clk 0:02:56]} 7. Na3 {[%clk 0:02:55]}  Be6 {[%clk 0:02:55]} 8. Nc4 {[%clk 0:02:49]}  Rb8 {[%clk 0:02:52]} 9. a4 {[%clk 0:02:43]}  Be7 {[%clk 0:02:51]} 10. Ne3 {[%clk 0:02:36]}  Nf6 {[%clk 0:02:50]} 11. Bd3 {[%clk 0:02:35]}  O-O {[%clk 0:02:50]} 12. O-O {[%clk 0:02:35]}  Nd4 {[%clk 0:02:44]} 13. Ncd5 {[%clk 0:02:27]}  Nd7 {[%clk 0:02:01]} 14. c3 {[%clk 0:02:18]}  Nc6 {[%clk 0:01:59]} 15. b4 {[%clk 0:02:14]}  Bg5 {[%clk 0:01:55]} 16. a5 {[%clk 0:02:09]}  Ne7 {[%clk 0:01:52]} 17. Bc4 {[%clk 0:02:03]}  Rc8 {[%clk 0:01:50]} 18. Qd3 {[%clk 0:01:58]}  Bxe3 {[%clk 0:01:44]} 19. Bxe3 {[%clk 0:01:54]}  Bxd5 {[%clk 0:01:38]} 20. Bxd5 {[%clk 0:01:39]}  Nxd5 {[%clk 0:01:37]} 21. Qxd5 {[%clk 0:01:39]}  Qc7 {[%clk 0:01:30]} 22. Rfd1 {[%clk 0:01:22]}  Nf6 {[%clk 0:01:30]} 23. Qxd6 {[%clk 0:01:15]}  Nxe4 {[%clk 0:01:29]} 24. Qxc7 {[%clk 0:01:00]}  Rxc7 {[%clk 0:01:30]} 25. Bb6 {[%clk 0:00:58]}  Rxc3 {[%clk 0:01:21]} 26. Rd7 {[%clk 0:00:58]}  Rb3 {[%clk 0:01:09]} 27. Rxb7 {[%clk 0:00:51]}  Rxb4 {[%clk 0:01:05]} 28. Ra7 {[%clk 0:00:50]}  Rc8 {[%clk 0:00:54]} 29. Rxa6 {[%clk 0:00:50]}  f6 {[%clk 0:00:54]} 30. Ra7 {[%clk 0:00:46]}  Rb2 {[%clk 0:00:52]} 31. Rc7 {[%clk 0:00:42]}  Ra8 {[%clk 0:00:45]} 32. Be3 {[%clk 0:00:36]}  f5 {[%clk 0:00:37]} 33. g3 {[%clk 0:00:35]}  f4 {[%clk 0:00:37]} 34. gxf4 {[%clk 0:00:34]}  exf4 {[%clk 0:00:37]} 35. Rxg7+ {[%clk 0:00:26]}  Kf8 {[%clk 0:00:27]} 36. Bxf4 {[%clk 0:00:21]}  Rxf2 {[%clk 0:00:23]} 37. Rxh7 {[%clk 0:00:19]}  Kg8 {[%clk 0:00:23]} 38. Rh4 {[%clk 0:00:15]}  Ra6 {[%clk 0:00:17]} 39. Bg3 {[%clk 0:00:15]}  Re2 {[%clk 0:00:18]} 40. Rf1 {[%clk 0:00:13]}  Nxg3 {[%clk 0:00:15]} 41. hxg3 {[%clk 0:00:11]}  Rxa5 {[%clk 0:00:14]} 42. Rg4+ {[%clk 0:00:11]}  Kh7 {[%clk 0:00:14]} 43. Rf2 {[%clk 0:00:10]}  Rxf2 {[%clk 0:00:11]} 44. Kxf2 {[%clk 0:00:09]}  Ra3 {[%clk 0:00:12]} 45. Kg1 {[%clk 0:00:08]}  Ra2 {[%clk 0:00:12]} 46. Rd4 {[%clk 0:00:06]}  Kh6 {[%clk 0:00:11]} 47. Rf4 {[%clk 0:00:06]}  Kg5 {[%clk 0:00:12]} 48. Rh4 {[%clk 0:00:07]}  Rb2 {[%clk 0:00:11]} 49. Rf4 {[%clk 0:00:06]}  Rc2 {[%clk 0:00:11]} 50. Rh4 {[%clk 0:00:07]}  Rb2 {[%clk 0:00:11]} 51. Rf4 {[%clk 0:00:07]}  Rc2 {[%clk 0:00:11]} 52. Rh4 {[%clk 0:00:07]}  Rb2 {[%clk 0:00:12]} 1/2-1/2


[Site "https://www.chess.com"]

[Event "Titled Tuesday Blitz April 25 Early 2023"]
[White "Isajevsky, Anton"]
[Black "Yeritsyan, Hayk"]
[WhiteFideId "4142500"]
[BlackFideId "13307320"]
[WhiteElo "2510"]
[BlackElo "2471"]
[Result "1-0"]
[Round "07"]
[TimeControl "180+2"]
[Date "2023.04.25"]
[WhiteClock "0:02:10"]
[BlackClock "0:01:17"]

1. c4 {[%clk 0:02:59]}  c6 {[%clk 0:02:59]} 2. Nf3 {[%clk 0:02:59]}  d5 {[%clk 0:03:00]} 3. e3 {[%clk 0:03:00]}  Nf6 {[%clk 0:03:00]} 4. Nc3 {[%clk 0:03:00]}  e6 {[%clk 0:03:00]} 5. b3 {[%clk 0:02:58]}  Bd6 {[%clk 0:03:00]} 6. Qc2 {[%clk 0:02:58]}  Nbd7 {[%clk 0:03:00]} 7. Rg1 {[%clk 0:02:53]}  Qe7 {[%clk 0:03:01]} 8. g4 {[%clk 0:02:53]}  O-O {[%clk 0:02:59]} 9. g5 {[%clk 0:02:52]}  Ne8 {[%clk 0:03:00]} 10. d4 {[%clk 0:02:45]}  dxc4 {[%clk 0:02:55]} 11. Bxc4 {[%clk 0:02:44]}  e5 {[%clk 0:02:56]} 12. Bb2 {[%clk 0:02:40]}  Nc7 {[%clk 0:02:47]} 13. O-O-O {[%clk 0:02:37]}  Nb6 {[%clk 0:02:28]} 14. Bd3 {[%clk 0:02:31]}  exd4 {[%clk 0:02:17]} 15. Bxh7+ {[%clk 0:02:19]}  Kh8 {[%clk 0:02:17]} 16. Rxd4 {[%clk 0:02:19]}  Ne6 {[%clk 0:02:02]} 17. Rh4 {[%clk 0:02:16]}  g6 {[%clk 0:01:17]} 18. Nd5+ {[%clk 0:02:10]} 1-0


[Site "https://www.chess.com"]

[Event "Titled Tuesday Blitz April 25 Early 2023"]
[White "Jovic, Stanoje"]
[Black "Osinenko, Anton"]
[WhiteFideId "905020"]
[BlackFideId "4158970"]
[WhiteElo "2236"]
[BlackElo "2294"]
[Result "0-1"]
[Round "07"]
[TimeControl "180+2"]
[Date "2023.04.25"]
[WhiteClock "0:00:21"]
[BlackClock "0:01:17"]

1. c4 {[%clk 0:02:55]}  e5 {[%clk 0:02:57]} 2. g3 {[%clk 0:02:55]}  g6 {[%clk 0:02:57]} 3. Bg2 {[%clk 0:02:55]}  Bg7 {[%clk 0:02:57]} 4. Nc3 {[%clk 0:02:55]}  Ne7 {[%clk 0:02:58]} 5. Nf3 {[%clk 0:02:55]}  Nbc6 {[%clk 0:02:58]} 6. O-O {[%clk 0:02:55]}  O-O {[%clk 0:02:58]} 7. d3 {[%clk 0:02:55]}  h6 {[%clk 0:02:57]} 8. Rb1 {[%clk 0:02:55]}  d6 {[%clk 0:02:57]} 9. b4 {[%clk 0:02:54]}  Be6 {[%clk 0:02:56]} 10. b5 {[%clk 0:02:54]}  Nd4 {[%clk 0:02:56]} 11. Ne1 {[%clk 0:02:52]}  Rb8 {[%clk 0:02:51]} 12. e3 {[%clk 0:02:41]}  Ndf5 {[%clk 0:02:51]} 13. Qa4 {[%clk 0:02:36]}  Nc8 {[%clk 0:02:46]} 14. Nd5 {[%clk 0:02:28]}  Nfe7 {[%clk 0:02:42]} 15. Nc2 {[%clk 0:02:21]}  Nb6 {[%clk 0:02:39]} 16. Nxb6 {[%clk 0:02:13]}  axb6 {[%clk 0:02:40]} 17. Nb4 {[%clk 0:02:10]}  f5 {[%clk 0:02:28]} 18. Qb3 {[%clk 0:02:06]}  Qe8 {[%clk 0:02:19]} 19. d4 {[%clk 0:02:01]}  exd4 {[%clk 0:02:14]} 20. exd4 {[%clk 0:02:01]}  Qf7 {[%clk 0:02:11]} 21. d5 {[%clk 0:01:57]}  Bd7 {[%clk 0:02:11]} 22. Bb2 {[%clk 0:01:51]}  Ra8 {[%clk 0:02:10]} 23. Bxg7 {[%clk 0:01:50]}  Qxg7 {[%clk 0:02:11]} 24. Rfe1 {[%clk 0:01:42]}  f4 {[%clk 0:02:08]} 25. Rb2 {[%clk 0:01:39]}  fxg3 {[%clk 0:02:06]} 26. hxg3 {[%clk 0:01:35]}  g5 {[%clk 0:02:00]} 27. Rbe2 {[%clk 0:01:33]}  Ng6 {[%clk 0:02:01]} 28. Nd3 {[%clk 0:01:27]}  Rae8 {[%clk 0:01:59]} 29. Be4 {[%clk 0:01:19]}  Ne5 {[%clk 0:01:51]} 30. Nxe5 {[%clk 0:01:14]}  Rxe5 {[%clk 0:01:52]} 31. Bg2 {[%clk 0:01:08]}  Rfe8 {[%clk 0:01:49]} 32. Rxe5 {[%clk 0:01:04]}  Rxe5 {[%clk 0:01:50]} 33. Rxe5 {[%clk 0:01:04]}  Qxe5 {[%clk 0:01:51]} 34. Qe3 {[%clk 0:00:51]}  Qxe3 {[%clk 0:01:44]} 35. fxe3 {[%clk 0:00:51]}  Kg7 {[%clk 0:01:44]} 36. Bf3 {[%clk 0:00:38]}  Kf6 {[%clk 0:01:43]} 37. Kf2 {[%clk 0:00:36]}  Ke5 {[%clk 0:01:44]} 38. Ke2 {[%clk 0:00:30]}  Bf5 {[%clk 0:01:43]} 39. g4 {[%clk 0:00:27]}  Bb1 {[%clk 0:01:43]} 40. a3 {[%clk 0:00:25]}  Bh7 {[%clk 0:01:18]} 41. Kd2 {[%clk 0:00:24]}  Bg6 {[%clk 0:01:19]} 42. Kc3 {[%clk 0:00:23]}  Be4 {[%clk 0:01:18]} 43. Bxe4 {[%clk 0:00:21]}  Kxe4 {[%clk 0:01:19]} 44. a4 {[%clk 0:00:21]}  Kxe3 {[%clk 0:01:19]} 45. a5 {[%clk 0:00:22]}  bxa5 {[%clk 0:01:18]} 46. c5 {[%clk 0:00:21]}  b6 {[%clk 0:01:17]} 0-1


[Site "https://www.chess.com"]

[Event "Titled Tuesday Blitz April 25 Early 2023"]
[White "Hajiyev, Kanan"]
[Black "Ferenc83"]
[WhiteFideId "13404148"]
[WhiteElo "2103"]
[BlackElo "2584"]
[Result "1/2-1/2"]
[Round "07"]
[TimeControl "180+2"]
[Date "2023.04.25"]
[WhiteClock "0:00:08"]
[BlackClock "0:00:26"]

1. d4 {[%clk 0:02:57]}  Nf6 {[%clk 0:02:26]} 2. Nf3 {[%clk 0:02:57]}  g6 {[%clk 0:02:25]} 3. g3 {[%clk 0:02:56]}  Bg7 {[%clk 0:02:25]} 4. Bg2 {[%clk 0:02:57]}  O-O {[%clk 0:02:25]} 5. O-O {[%clk 0:02:58]}  d6 {[%clk 0:02:26]} 6. b3 {[%clk 0:02:58]}  a5 {[%clk 0:02:24]} 7. a3 {[%clk 0:02:58]}  a4 {[%clk 0:02:23]} 8. b4 {[%clk 0:02:58]}  d5 {[%clk 0:02:24]} 9. Bb2 {[%clk 0:02:51]}  c6 {[%clk 0:02:24]} 10. Ne5 {[%clk 0:02:51]}  Nbd7 {[%clk 0:02:24]} 11. Nd2 {[%clk 0:02:51]}  Nxe5 {[%clk 0:02:23]} 12. dxe5 {[%clk 0:02:52]}  Nd7 {[%clk 0:02:23]} 13. f4 {[%clk 0:02:48]}  Nb6 {[%clk 0:02:23]} 14. Rc1 {[%clk 0:02:45]}  Be6 {[%clk 0:02:22]} 15. Bd4 {[%clk 0:02:40]}  f6 {[%clk 0:02:17]} 16. exf6 {[%clk 0:02:36]}  Bxf6 {[%clk 0:02:16]} 17. e3 {[%clk 0:02:29]}  Nc4 {[%clk 0:02:06]} 18. Nxc4 {[%clk 0:02:24]}  dxc4 {[%clk 0:02:05]} 19. c3 {[%clk 0:02:18]}  Qd7 {[%clk 0:01:41]} 20. Bxf6 {[%clk 0:02:04]}  exf6 {[%clk 0:01:31]} 21. Qxd7 {[%clk 0:02:04]}  Bxd7 {[%clk 0:01:32]} 22. Rcd1 {[%clk 0:02:01]}  Bg4 {[%clk 0:01:29]} 23. Rd2 {[%clk 0:01:53]}  Rad8 {[%clk 0:01:26]} 24. Rff2 {[%clk 0:01:44]}  Rfe8 {[%clk 0:01:22]} 25. e4 {[%clk 0:01:43]}  Be6 {[%clk 0:01:18]} 26. Kf1 {[%clk 0:01:39]}  Kf7 {[%clk 0:01:16]} 27. Ke1 {[%clk 0:01:37]}  Ke7 {[%clk 0:01:16]} 28. Rxd8 {[%clk 0:01:36]}  Rxd8 {[%clk 0:01:16]} 29. Rd2 {[%clk 0:01:37]}  Rh8 {[%clk 0:01:15]} 30. Bf1 {[%clk 0:01:33]}  g5 {[%clk 0:01:10]} 31. f5 {[%clk 0:01:24]}  Bf7 {[%clk 0:01:09]} 32. Rd4 {[%clk 0:01:25]}  b5 {[%clk 0:01:08]} 33. Kf2 {[%clk 0:01:25]}  Rc8 {[%clk 0:01:03]} 34. Ke3 {[%clk 0:01:17]}  c5 {[%clk 0:01:04]} 35. bxc5 {[%clk 0:01:18]}  Rxc5 {[%clk 0:01:04]} 36. h4 {[%clk 0:01:16]}  h6 {[%clk 0:01:03]} 37. Bg2 {[%clk 0:01:13]}  Rc7 {[%clk 0:01:02]} 38. Rd2 {[%clk 0:01:12]}  gxh4 {[%clk 0:01:01]} 39. gxh4 {[%clk 0:01:12]}  Rc8 {[%clk 0:01:01]} 40. Rb2 {[%clk 0:01:12]}  Be8 {[%clk 0:00:59]} 41. Bf1 {[%clk 0:01:06]}  Bd7 {[%clk 0:00:58]} 42. Rg2 {[%clk 0:01:05]}  Kf7 {[%clk 0:00:53]} 43. Be2 {[%clk 0:01:05]}  Bc6 {[%clk 0:00:52]} 44. Bh5+ {[%clk 0:01:04]}  Kf8 {[%clk 0:00:52]} 45. Rg6 {[%clk 0:01:04]}  Ke7 {[%clk 0:00:52]} 46. Rxh6 {[%clk 0:01:03]}  Rd8 {[%clk 0:00:52]} 47. Rh7+ {[%clk 0:01:02]}  Kd6 {[%clk 0:00:50]} 48. Kd4 {[%clk 0:01:02]}  Rg8 {[%clk 0:00:41]} 49. Rf7 {[%clk 0:00:57]}  Rg3 {[%clk 0:00:40]} 50. Rxf6+ {[%clk 0:00:57]}  Kc7 {[%clk 0:00:40]} 51. Be2 {[%clk 0:00:32]}  Rg2 {[%clk 0:00:39]} 52. Ke3 {[%clk 0:00:31]}  Rh2 {[%clk 0:00:37]} 53. h5 {[%clk 0:00:31]}  Rh3+ {[%clk 0:00:36]} 54. Bf3 {[%clk 0:00:31]}  b4 {[%clk 0:00:33]} 55. cxb4 {[%clk 0:00:28]}  c3 {[%clk 0:00:34]} 56. Rg6 {[%clk 0:00:14]}  Be8 {[%clk 0:00:31]} 57. Rg1 {[%clk 0:00:13]}  Bxh5 {[%clk 0:00:31]} 58. Rf1 {[%clk 0:00:03]}  Rxf3+ {[%clk 0:00:30]} 59. Rxf3 {[%clk 0:00:03]}  Bxf3 {[%clk 0:00:30]} 60. Kd3 {[%clk 0:00:04]}  Bxe4+ {[%clk 0:00:29]} 61. Kxc3 {[%clk 0:00:04]}  Bxf5 {[%clk 0:00:29]} 62. b5 {[%clk 0:00:03]}  Kb6 {[%clk 0:00:30]} 63. Kb4 {[%clk 0:00:04]}  Bc2 {[%clk 0:00:30]} 64. Kc3 {[%clk 0:00:04]}  Bb3 {[%clk 0:00:30]} 65. Kb4 {[%clk 0:00:05]}  Kb7 {[%clk 0:00:30]} 66. Ka5 {[%clk 0:00:05]}  Kc7 {[%clk 0:00:31]} 67. Ka6 {[%clk 0:00:05]}  Bc4 {[%clk 0:00:29]} 68. Ka5 {[%clk 0:00:05]}  Bb3 {[%clk 0:00:29]} 69. Ka6 {[%clk 0:00:05]}  Kb8 {[%clk 0:00:29]} 70. Kb6 {[%clk 0:00:05]}  Bc2 {[%clk 0:00:29]} 71. Ka6 {[%clk 0:00:05]}  Ka8 {[%clk 0:00:29]} 72. Kb6 {[%clk 0:00:06]}  Kb8 {[%clk 0:00:29]} 73. Ka6 {[%clk 0:00:06]}  Bd1 {[%clk 0:00:29]} 74. Kb6 {[%clk 0:00:07]}  Be2 {[%clk 0:00:30]} 75. Ka6 {[%clk 0:00:07]}  Bd1 {[%clk 0:00:29]} 76. Ka5 {[%clk 0:00:08]}  Bb3 {[%clk 0:00:29]} 77. Kb6 {[%clk 0:00:08]}  Bc4 {[%clk 0:00:27]} 78. Ka5 {[%clk 0:00:08]}  Bb3 {[%clk 0:00:26]} 79. Kb6 {[%clk 0:00:08]} 1/2-1/2


[Site "https://www.chess.com"]

[Event "Titled Tuesday Blitz April 25 Early 2023"]
[White "Yelisieiev, Yevhenii"]
[Black "Jaskolka, Tomasz"]
[WhiteFideId "14139642"]
[BlackFideId "1170791"]
[WhiteElo "2425"]
[BlackElo "2155"]
[Result "1-0"]
[Round "07"]
[TimeControl "180+2"]
[Date "2023.04.25"]
[WhiteClock "0:00:12"]
[BlackClock "0:00:02"]

1. d4 {[%clk 0:03:00]}  d5 {[%clk 0:02:59]} 2. Nf3 {[%clk 0:03:00]}  Nc6 {[%clk 0:02:57]} 3. e3 {[%clk 0:02:51]}  Bg4 {[%clk 0:02:47]} 4. h3 {[%clk 0:02:48]}  Bxf3 {[%clk 0:02:45]} 5. Qxf3 {[%clk 0:02:48]}  e5 {[%clk 0:02:46]} 6. dxe5 {[%clk 0:02:41]}  Nxe5 {[%clk 0:02:45]} 7. Qg3 {[%clk 0:02:35]}  Ng6 {[%clk 0:02:43]} 8. Bd3 {[%clk 0:02:15]}  Nf6 {[%clk 0:02:43]} 9. O-O {[%clk 0:02:01]}  Bd6 {[%clk 0:02:35]} 10. f4 {[%clk 0:02:01]}  Qe7 {[%clk 0:02:31]} 11. Nc3 {[%clk 0:01:55]}  c6 {[%clk 0:02:29]} 12. Bd2 {[%clk 0:01:53]}  O-O {[%clk 0:02:06]} 13. Rae1 {[%clk 0:01:44]}  Rfe8 {[%clk 0:02:06]} 14. Kh1 {[%clk 0:01:39]}  Ne4 {[%clk 0:01:45]} 15. Nxe4 {[%clk 0:01:37]}  dxe4 {[%clk 0:01:46]} 16. Bc4 {[%clk 0:01:37]}  b5 {[%clk 0:01:44]} 17. Bb3 {[%clk 0:01:37]}  a5 {[%clk 0:01:43]} 18. a4 {[%clk 0:01:33]}  b4 {[%clk 0:01:43]} 19. Qg5 {[%clk 0:01:19]}  Qxg5 {[%clk 0:01:23]} 20. fxg5 {[%clk 0:01:19]}  Ne5 {[%clk 0:01:23]} 21. Rf5 {[%clk 0:01:13]}  Ra7 {[%clk 0:01:16]} 22. Ref1 {[%clk 0:01:12]}  Rd7 {[%clk 0:01:05]} 23. Be1 {[%clk 0:01:08]}  g6 {[%clk 0:00:58]} 24. Rf6 {[%clk 0:01:01]}  Rf8 {[%clk 0:00:47]} 25. Bg3 {[%clk 0:00:57]}  Nc4 {[%clk 0:00:44]} 26. Bxc4 {[%clk 0:00:45]}  Bxg3 {[%clk 0:00:44]} 27. Rxc6 {[%clk 0:00:45]}  Bh4 {[%clk 0:00:33]} 28. Rc5 {[%clk 0:00:41]}  Kg7 {[%clk 0:00:25]} 29. Rxa5 {[%clk 0:00:36]}  Rd2 {[%clk 0:00:26]} 30. Bb3 {[%clk 0:00:35]}  Bg3 {[%clk 0:00:20]} 31. Rb5 {[%clk 0:00:33]}  h5 {[%clk 0:00:16]} 32. Rxb4 {[%clk 0:00:29]}  h4 {[%clk 0:00:16]} 33. Rxe4 {[%clk 0:00:28]}  Rfd8 {[%clk 0:00:13]} 34. Re7 {[%clk 0:00:24]}  Rd1 {[%clk 0:00:10]} 35. Rxf7+ {[%clk 0:00:24]}  Kh8 {[%clk 0:00:11]} 36. Kg1 {[%clk 0:00:20]}  Rxf1+ {[%clk 0:00:10]} 37. Kxf1 {[%clk 0:00:19]}  Rd2 {[%clk 0:00:10]} 38. a5 {[%clk 0:00:18]}  Rd1+ {[%clk 0:00:07]} 39. Ke2 {[%clk 0:00:18]}  Ra1 {[%clk 0:00:08]} 40. Ra7 {[%clk 0:00:17]}  Re1+ {[%clk 0:00:06]} 41. Kd3 {[%clk 0:00:17]}  Bf2 {[%clk 0:00:07]} 42. Re7 {[%clk 0:00:16]}  Ra1 {[%clk 0:00:07]} 43. Re5 {[%clk 0:00:16]}  Kg7 {[%clk 0:00:06]} 44. Kc4 {[%clk 0:00:16]}  Be1 {[%clk 0:00:06]} 45. c3 {[%clk 0:00:16]}  Rb1 {[%clk 0:00:06]} 46. a6 {[%clk 0:00:15]}  Ra1 {[%clk 0:00:07]} 47. Kb5 {[%clk 0:00:15]}  Kf8 {[%clk 0:00:05]} 48. Rc5 {[%clk 0:00:15]}  Ke7 {[%clk 0:00:05]} 49. Rc7+ {[%clk 0:00:15]}  Kd6 {[%clk 0:00:05]} 50. Rb7 {[%clk 0:00:16]}  Ke5 {[%clk 0:00:05]} 51. a7 {[%clk 0:00:16]}  Bf2 {[%clk 0:00:05]} 52. Re7+ {[%clk 0:00:14]}  Kf5 {[%clk 0:00:05]} 53. Bd5 {[%clk 0:00:13]}  Bxe3 {[%clk 0:00:02]} 54. Rxe3 {[%clk 0:00:13]}  Rxa7 {[%clk 0:00:02]} 55. Re4 {[%clk 0:00:12]}  Kxg5 {[%clk 0:00:03]} 56. Rg4+ {[%clk 0:00:12]}  Kh5 {[%clk 0:00:03]} 57. Be4 {[%clk 0:00:12]}  Re7 {[%clk 0:00:03]} 58. Bxg6+ {[%clk 0:00:12]}  Kh6 {[%clk 0:00:04]} 59. Be4 {[%clk 0:00:12]}  Kh5 {[%clk 0:00:04]} 60. Bf3 {[%clk 0:00:11]}  Re5+ {[%clk 0:00:04]} 61. Kb4 {[%clk 0:00:10]}  Kh6 {[%clk 0:00:04]} 62. Rxh4+ {[%clk 0:00:10]}  Kg7 {[%clk 0:00:05]} 63. Rg4+ {[%clk 0:00:10]}  Kh6 {[%clk 0:00:04]} 64. c4 {[%clk 0:00:11]}  Re6 {[%clk 0:00:04]} 65. c5 {[%clk 0:00:11]}  Re7 {[%clk 0:00:04]} 66. c6 {[%clk 0:00:12]}  Rc7 {[%clk 0:00:05]} 67. Kc5 {[%clk 0:00:12]}  Kh7 {[%clk 0:00:04]} 68. b4 {[%clk 0:00:13]}  Re7 {[%clk 0:00:04]} 69. b5 {[%clk 0:00:13]}  Kh8 {[%clk 0:00:04]} 70. b6 {[%clk 0:00:13]}  Re5+ {[%clk 0:00:04]} 71. Kd6 {[%clk 0:00:14]}  Rb5 {[%clk 0:00:04]} 72. c7 {[%clk 0:00:13]}  Kh7 {[%clk 0:00:04]} 73. c8=Q {[%clk 0:00:13]}  Rxb6+ {[%clk 0:00:04]} 74. Kc5 {[%clk 0:00:13]}  Rf6 {[%clk 0:00:02]} 75. Qg8+ {[%clk 0:00:13]}  Kh6 {[%clk 0:00:02]} 76. Qh8# {[%clk 0:00:12]} 1-0


[Site "https://www.chess.com"]

[Event "Titled Tuesday Blitz April 25 Early 2023"]
[White "Danielyan, Vahe"]
[Black "Shuvalov, Evgenij"]
[WhiteFideId "13304828"]
[BlackFideId "4187237"]
[WhiteElo "2423"]
[BlackElo "2080"]
[Result "0-1"]
[Round "07"]
[TimeControl "180+2"]
[Date "2023.04.25"]
[WhiteClock "0:00:13"]
[BlackClock "0:00:14"]

1. d4 {[%clk 0:03:00]}  Nf6 {[%clk 0:02:56]} 2. c4 {[%clk 0:02:58]}  g6 {[%clk 0:02:56]} 3. Nc3 {[%clk 0:02:57]}  d5 {[%clk 0:02:56]} 4. cxd5 {[%clk 0:02:56]}  Nxd5 {[%clk 0:02:57]} 5. e4 {[%clk 0:02:57]}  Nxc3 {[%clk 0:02:57]} 6. bxc3 {[%clk 0:02:58]}  Bg7 {[%clk 0:02:57]} 7. Nf3 {[%clk 0:02:58]}  c5 {[%clk 0:02:58]} 8. Be2 {[%clk 0:02:58]}  Nc6 {[%clk 0:02:58]} 9. d5 {[%clk 0:02:39]}  Bxc3+ {[%clk 0:02:46]} 10. Bd2 {[%clk 0:02:38]}  Bxa1 {[%clk 0:02:46]} 11. Qxa1 {[%clk 0:02:39]}  Nd4 {[%clk 0:02:46]} 12. Nxd4 {[%clk 0:02:38]}  cxd4 {[%clk 0:02:47]} 13. Qxd4 {[%clk 0:02:38]}  f6 {[%clk 0:02:43]} 14. O-O {[%clk 0:02:37]}  O-O {[%clk 0:02:34]} 15. Bc4 {[%clk 0:02:37]}  Qd6 {[%clk 0:02:16]} 16. a3 {[%clk 0:02:31]}  a5 {[%clk 0:02:14]} 17. Rc1 {[%clk 0:02:30]}  Bd7 {[%clk 0:02:10]} 18. f4 {[%clk 0:02:15]}  Rfc8 {[%clk 0:01:40]} 19. e5 {[%clk 0:02:14]}  fxe5 {[%clk 0:01:40]} 20. fxe5 {[%clk 0:02:15]}  Qc5 {[%clk 0:01:39]} 21. d6+ {[%clk 0:02:10]}  e6 {[%clk 0:01:35]} 22. Qxc5 {[%clk 0:01:57]}  Rxc5 {[%clk 0:01:36]} 23. Bxe6+ {[%clk 0:01:57]}  Bxe6 {[%clk 0:01:32]} 24. Rxc5 {[%clk 0:01:58]}  Rc8 {[%clk 0:01:24]} 25. Rb5 {[%clk 0:01:58]}  Rc2 {[%clk 0:01:14]} 26. Bxa5 {[%clk 0:01:54]}  Bc8 {[%clk 0:00:47]} 27. Bb4 {[%clk 0:01:29]}  Kf7 {[%clk 0:00:44]} 28. Rd5 {[%clk 0:01:05]}  Bd7 {[%clk 0:00:38]} 29. Rd1 {[%clk 0:00:43]}  Ke6 {[%clk 0:00:35]} 30. Rf1 {[%clk 0:00:38]}  Bc6 {[%clk 0:00:23]} 31. Rf6+ {[%clk 0:00:35]}  Kxe5 {[%clk 0:00:20]} 32. Rf7 {[%clk 0:00:36]}  Ke6 {[%clk 0:00:14]} 33. Re7+ {[%clk 0:00:34]}  Kf6 {[%clk 0:00:14]} 34. d7 {[%clk 0:00:27]}  Rc1+ {[%clk 0:00:14]} 35. Kf2 {[%clk 0:00:27]}  Rd1 {[%clk 0:00:14]} 36. Rxh7 {[%clk 0:00:13]}  Rxd7 {[%clk 0:00:14]} 37. g3 {[%clk 0:00:13]}  Rxh7 {[%clk 0:00:14]} 0-1


[Site "https://www.chess.com"]